bitfinex/quotes_ETHUSD_20240907
["timestamp","ask_amount","ask_price","bid_price","bid_amount"]
[1725719154113,3.0,2298.7,2298.6,0.21949731]
[1725719154412,1.82248793,2298.7,2298.6,0.21949731]
[1725719154615,4.82248793,2298.7,2298.6,0.21949731]
[1725719154770,4.86801399,2298.7,2298.6,0.21949731]
[1725719154971,6.51993911,2298.7,2298.6,0.21949731]
[1725719155408,6.0623147,2298.7,2298.6,0.21949731]
[1725719156011,5.60718941,2298.7,2298.6,0.21949731]
[1725719157913,1.36639163,2298.7,2298.6,4.56996731]
[1725719158070,0.91056216,2298.8,2298.7,4.35028]
[1725719158619,1.36621406,2298.9,2298.7,4.35028]
[1725719158986,0.91056216,2298.8,2298.7,4.35028]
[1725719159558,1.36621406,2298.9,2298.7,4.58217139]
[1725719159682,5.12617893,2298.9,2298.7,0.23189139]
[1725719159984,0.91056216,2298.8,2298.6,4.56996731]
[1725719160403,0.91056216,2298.8,2298.7,0.23168228]
[1725719160885,1.41191769,2298.8,2298.7,0.23168228]
[1725719162505,1.36639163,2298.8,2298.7,0.23168228]
[1725719162680,4.36603883,2298.9,2298.7,4.58187228]
[1725719163023,4.36603883,2298.9,2298.8,0.23254271]
[1725719163179,4.36603883,2298.9,2298.7,4.35019]
[1725719163393,3.4556519,2298.9,2298.8,0.23254271]
[1725719163906,4.36603883,2298.9,2298.7,4.35019]
[1725719164108,1.36603883,2298.9,2298.8,4.58263271]
[1725719164326,0.4556519,2298.9,2298.8,8.93272271]
[1725719164827,0.91038693,2299.2,2298.9,4.34983]
[1725719164828,0.95591299,2299.2,2298.9,4.34983]
[1725719165118,0.91038693,2299.2,2299.1,4.34952]
[1725719165308,0.91038693,2299.2,2299.1,8.69904]
[1725719165504,1.36612638,2299.3,2299.2,4.34933]
[1725719165728,0.45573945,2299.3,2299.2,4.34933]
[1725719165928,0.45573945,2299.3,2299.2,4.58144051]
[1725719169296,0.45573945,2299.3,2299.2,8.93077051]
[1725719169522,0.45573945,2299.3,2299.2,9.82384756]
[1725719171210,0.45573945,2299.3,2299.2,8.93077051]
[1725719173228,0.45573945,2299.3,2299.2,0.23211051]
[1725719173538,1.36612638,2299.3,2299.2,0.23211051]
[1725719173718,1.41165244,2299.3,2299.0,4.34959]
[1725719173914,0.50126551,2299.3,2299.0,4.34959]
[1725719174145,1.36612638,2299.3,2299.1,4.58082622]
[1725719174444,0.45573945,2299.3,2299.2,8.69866]
[1725719174949,0.45573945,2299.3,2299.2,8.92996212]
[1725719175315,0.45573945,2299.3,2299.2,4.58063212]
[1725719175908,0.45573945,2299.3,2299.2,11.61016212]
[1725719176110,0.45573945,2299.3,2299.2,17.12050833]
[1725719178746,0.45573945,2299.3,2299.2,12.77117833]
[1725719179164,0.45573945,2299.3,2299.2,17.12050833]
[1725719179359,0.45573945,2299.3,2299.2,12.77117833]
[1725719180548,0.45573945,2299.3,2299.2,17.12050833]
[1725719184035,0.45573945,2299.3,2299.2,21.46983833]
[1725719184376,0.45573945,2299.3,2299.2,22.01983833]
[1725719184678,7.27,2299.7,2299.6,8.69716]
[1725719184833,0.91038693,2300.0,2299.9,4.34801]
[1725719185359,0.91038693,2300.1,2300.0,4.34782]
[1725719185675,0.91038693,2300.1,2300.0,4.57770091]
[1725719185908,1.36612878,2300.1,2300.0,4.57770091]
[1725719186174,0.45574185,2300.1,2300.0,4.57770091]
[1725719188072,0.45574185,2300.1,2300.0,4.34782]
[1725719188574,0.45574185,2300.1,2300.0,4.57770091]
[1725719190055,0.45574185,2300.1,2300.0,8.92552091]
[1725719191358,0.45574185,2300.1,2300.0,11.60572091]
[1725719192895,0.90958166,2300.5,2300.4,4.34707]
[1725719193067,1.39103175,2300.5,2300.4,4.34707]
[1725719193263,1.3643725,2300.7,2300.4,4.34707]
[1725719193264,0.90958166,2300.7,2300.6,4.34669]
[1725719193663,1.36524771,2300.7,2300.6,4.57562392]
[1725719194279,0.45566605,2300.7,2300.6,4.57562392]
[1725719194660,3.45566605,2300.7,2300.6,4.57562392]
[1725719194895,4.66015143,2300.7,2300.6,4.57562392]
[1725719196958,3.45566605,2300.7,2300.6,4.57562392]
[1725719197178,0.45566605,2300.7,2300.6,4.57562392]
[1725719197380,0.45566605,2300.7,2300.6,8.92231392]
[1725719201910,0.45566605,2300.7,2300.6,4.57562392]
[1725719201911,3.04796605,2300.7,2300.6,4.57562392]
[1725719202112,3.35276266,2300.7,2300.6,4.57562392]
[1725719202571,0.76046266,2300.7,2300.6,4.57562392]
[1725719202779,0.45566605,2300.7,2300.6,8.92231392]
[1725719203791,10.77188166,2301.4,2300.8,2.6441]
[1725719203977,0.45548487,2301.3,2301.2,8.69096]
[1725719204288,0.45548487,2301.3,2301.2,8.91825124]
[1725719204705,0.45548487,2301.3,2301.2,4.57270124]
[1725719208194,0.45548487,2301.3,2301.2,0.22729124]
[1725719209119,0.45548487,2301.3,2301.2,4.57284124]
[1725719211193,0.45548487,2301.3,2301.2,0.22729124]
[1725719211399,0.45548487,2301.3,2301.2,4.57284124]
[1725719212094,0.45548487,2301.3,2301.2,8.91839124]
[1725719214602,0.45548487,2301.3,2301.2,10.50923036]
[1725719215544,7.27,2301.9,2301.6,4.3448]
[1725719215750,0.45542036,2301.7,2301.6,4.34468]
[1725719216999,0.45542036,2301.7,2301.6,4.5703712]
[1725719217431,0.45542036,2301.7,2301.6,0.2256912]
[1725719217597,3.06472036,2301.7,2301.6,0.2256912]
[1725719218014,0.45542036,2301.7,2301.6,4.5704912]
[1725719219516,0.45542036,2301.7,2301.6,9.80683032]
[1725719219914,0.45542036,2301.7,2301.6,16.71413032]
[1725719220128,7.27,2302.4,2302.3,8.68696]
[1725719220328,0.45526341,2302.7,2302.5,4.34309]
[1725719220536,1.1703911,2302.7,2302.5,4.34309]
[1725719220705,1.1703911,2302.7,2302.6,0.22391838]
[1725719220706,4.93842471,2302.7,2302.6,0.22391838]
[1725719220908,10.19072637,2302.7,2302.2,4.34353]
[1725719221127,10.19072637,2302.7,2302.6,0.22391838]
[1725719221304,9.28114471,2302.7,2302.2,4.34353]
[1725719221646,1.75973672,2302.6,2302.2,4.34353]
[1725719221942,6.14819278,2302.6,2302.3,0.22396358]
[1725719222305,7.0549592,2302.6,2302.3,0.22396358]
[1725719222508,6.14819278,2302.6,2302.1,4.34385]
[1725719222712,2.6093,2302.5,2302.4,0.22385585]
[1725719223043,2.6093,2302.5,2301.8,4.34427]
[1725719223044,8.65805239,2302.5,2301.8,4.34427]
[1725719223203,8.65805239,2302.5,2302.4,0.22385585]
[1725719223204,14.52817302,2302.5,2302.4,0.22385585]
[1725719223610,14.52817302,2302.5,2301.7,8.68896]
[1725719223611,4.34369,2302.2,2301.7,8.68896]
[1725719223847,3.04552606,2302.1,2301.8,4.34441]
[1725719224028,3.04552606,2302.1,2301.8,4.56888461]
[1725719224213,3.78444767,2302.1,2301.8,4.56888461]
[1725719224744,3.78444767,2302.1,2301.8,0.22447461]
[1725719224946,2.6093,2302.0,2301.7,4.34446]
[1725719225305,2.6093,2302.0,2301.8,0.22447461]
[1725719225647,3.78444767,2302.1,2301.7,8.68897]
[1725719225830,1.07374377,2302.0,2301.9,0.22436682]
[1725719226141,1.07374377,2302.0,2301.8,4.34441]
[1725719226344,1.07374377,2302.0,2301.9,0.22436682]
[1725719226548,3.04552606,2302.1,2301.9,0.22436682]
[1725719226721,3.04552606,2302.1,2301.9,4.56858682]
[1725719226911,3.04552606,2302.2,2301.9,0.22436682]
[1725719227713,2.6093,2302.1,2301.9,0.22436682]
[1725719227914,3.04552606,2302.0,2301.9,0.22436682]
[1725719228126,4.73422761,2302.0,2301.8,4.3444]
[1725719228324,3.0,2302.0,2301.9,0.22436682]
[1725719228529,0.04552606,2302.1,2301.9,0.22436682]
[1725719229047,0.04552606,2302.1,2301.9,4.56854682]
[1725719229547,0.04552606,2302.1,2301.8,8.68857]
[1725719229753,3.04552606,2302.2,2302.0,4.34404]
[1725719229950,9.1280734,2302.5,2302.2,4.34367]
[1725719230250,2.33877597,2302.4,2302.3,4.34348]
[1725719230455,0.04552606,2302.6,2302.4,4.34326]
[1725719230975,0.04552606,2302.6,2302.5,0.22372722]
[1725719231258,5.08401803,2302.7,2302.5,0.22372722]
[1725719231259,5.12954409,2302.7,2302.5,0.22372722]
[1725719231446,5.56332207,2302.7,2302.3,8.68683]
[1725719231752,3.0,2302.6,2302.5,0.22372722]
[1725719232046,3.04552606,2302.6,2302.4,0.22383494]
[1725719233639,3.0,2302.6,2302.4,0.22383494]
[1725719234017,3.0,2302.6,2302.4,4.56709494]
[1725719234219,4.81955362,2302.6,2302.4,0.22383494]
[1725719235339,5.72580069,2302.6,2302.4,4.56712494]
[1725719235546,4.77402756,2302.6,2302.4,4.56712494]
[1725719235741,5.72580069,2302.6,2302.4,4.56712494]
[1725719236077,5.72580069,2302.6,2302.4,0.22383494]
[1725719236078,0.99035717,2302.5,2302.4,0.22383494]
[1725719236260,4.77402756,2302.6,2302.4,4.56712494]
[1725719236666,3.0,2302.6,2302.5,4.3431]
[1725719236850,3.0,2302.6,2302.4,8.91031494]
[1725719237182,3.0,2302.6,2302.5,0.22355351]
[1725719237678,10.83545707,2302.6,2302.5,0.22355351]
[1725719238052,8.68632,2302.5,2302.0,4.34394]
[1725719238377,1.56354265,2302.4,2302.0,4.34394]
[1725719238880,1.56354265,2302.4,2302.0,8.68789]
[1725719239046,1.56354265,2302.4,2302.0,4.34394]
[1725719239244,2.47108857,2302.4,2302.0,4.34394]
[1725719239474,6.81439857,2302.4,2302.0,4.34394]
[1725719239661,3.74757567,2302.3,2302.0,4.34394]
[1725719240375,0.04552606,2302.2,2301.9,4.34422]
[1725719240675,4.70064765,2302.3,2302.0,4.34404]
[1725719241479,0.90754592,2302.2,2302.0,4.34404]
[1725719241776,0.90754592,2302.2,2302.0,8.68808]
[1725719241944,2.06882159,2302.3,2302.0,8.68799]
[1725719242146,5.06882159,2302.3,2302.0,8.6879]
[1725719242951,1.21289788,2302.2,2302.0,4.34395]
[1725719243182,2.07491774,2302.2,2302.0,4.34395]
[1725719243538,2.1204438,2302.2,2301.8,8.68861]
[1725719244175,0.90754592,2302.1,2301.9,4.34422]
[1725719245683,2.28842745,2302.1,2301.8,4.3443]
[1725719245856,0.90754592,2302.0,2301.8,4.3443]
[1725719246059,2.28842745,2302.1,2301.8,4.3443]
[1725719246245,2.28842745,2302.1,2301.6,8.68936]
[1725719246246,0.90754592,2301.9,2301.6,8.68936]
[1725719246565,0.90754592,2301.9,2301.7,4.34461]
[1725719246771,0.90754592,2301.9,2301.7,4.56900472]
[1725719247167,1.45929485,2301.9,2301.7,0.22439472]
[1725719247377,0.90754592,2301.8,2301.7,4.56900472]
[1725719247569,1.45929485,2301.9,2301.7,4.56900472]
[1725719247767,0.90754592,2301.8,2301.7,4.56900472]
[1725719248265,1.3643725,2301.8,2301.7,0.22439472]
[1725719248997,1.3643725,2301.8,2301.7,4.56900472]
[1725719249694,1.3643725,2301.8,2301.7,0.22439472]
[1725719249916,1.81916333,2301.9,2301.7,0.22439472]
[1725719250055,3.17783374,2301.9,2301.7,0.22439472]
[1725719250258,1.81916333,2301.8,2301.7,0.22439472]
[1725719251013,1.81916333,2301.8,2301.7,4.56900472]
[1725719252070,1.81916333,2301.8,2301.7,0.22439472]
[1725719254307,1.36690382,2301.8,2301.7,4.56900472]
[1725719255241,2.27445792,2301.9,2301.7,4.56900472]
[1725719255619,1.36715666,2301.8,2301.7,4.56900472]
[1725719256445,1.81916333,2301.8,2301.7,4.56900472]
[1725719258004,1.81916333,2301.8,2301.7,0.22439472]
[1725719258820,1.82408452,2301.8,2301.7,0.22439472]
[1725719259822,2.27962333,2301.8,2301.7,0.22439472]
[1725719260635,4.87592333,2301.8,2301.7,0.22439472]
[1725719260942,6.2762412,2301.8,2301.7,0.22439472]
[1725719261247,3.99661787,2301.8,2301.7,0.22439472]
[1725719261452,5.54344463,2301.8,2301.5,4.34497]
[1725719261613,1.82483455,2301.6,2301.5,4.34497]
[1725719262009,1.36861849,2301.6,2301.5,8.68996]
[1725719262310,0.91233855,2301.6,2301.5,13.03495]
[1725719262541,0.91233855,2301.6,2301.5,14.338445]
[1725719262844,0.91233855,2301.6,2301.5,9.993455]
[1725719265224,1.36861849,2301.6,2301.5,4.34497]
[1725719265425,1.82483455,2301.7,2301.5,4.34497]
[1725719265624,1.82483455,2301.6,2301.5,4.34497]
[1725719268250,1.82483455,2301.6,2301.0,2.5811]
[1725719268462,1.82483455,2301.6,2301.2,4.34553]
[1725719268463,1.36905277,2301.3,2301.2,4.34553]
[1725719268918,3.41718737,2301.3,2300.9,4.34598]
[1725719269123,0.91287804,2301.0,2300.9,4.34598]
[1725719269424,0.91262931,2301.0,2300.9,4.34598]
[1725719269637,1.36931242,2301.1,2300.9,4.34598]
[1725719270151,0.91261795,2301.0,2300.9,4.34598]
[1725719270657,0.91261795,2301.0,2300.9,8.6921]
[1725719272376,0.91261795,2301.1,2301.0,4.34593]
[1725719272766,1.41483848,2301.2,2301.0,4.34593]
[1725719273082,0.91194859,2301.1,2301.0,4.34593]
[1725719273771,1.36931242,2301.2,2301.1,4.34574]
[1725719273972,1.36931242,2301.3,2301.2,4.34555]
[1725719274179,1.36765849,2301.3,2301.1,4.34574]
[1725719274377,1.82483455,2301.4,2301.3,4.34537]
[1725719274541,4.82483455,2301.4,2301.3,4.34537]
[1725719275150,4.82483455,2301.4,2301.3,4.57126649]
[1725719275586,3.0,2301.4,2301.3,4.57126649]
[1725719275881,1.36726595,2301.4,2301.3,4.57126649]
[1725719276179,4.82483455,2301.4,2301.3,4.57126649]
[1725719276343,1.82483455,2301.4,2301.3,4.57126649]
[1725719276655,1.36724663,2301.4,2301.3,4.57126649]
[1725719277049,1.36724663,2301.4,2301.3,0.22589649]
[1725719277258,3.40358512,2301.4,2301.3,0.22589649]
[1725719277485,3.40358512,2301.4,2301.2,4.34545]
[1725719277486,6.44911118,2301.4,2301.2,4.34545]
[1725719277945,1.36731344,2301.3,2301.2,4.34545]
[1725719278601,6.44911118,2301.4,2301.2,4.34545]
[1725719278758,1.36734276,2301.3,2301.2,4.34545]
[1725719279276,6.44911118,2301.4,2301.2,4.34545]
[1725719279483,1.82483455,2301.3,2301.2,4.34545]
[1725719279658,1.87036061,2301.3,2301.2,4.34545]
[1725719280554,7.10384374,2301.4,2301.3,4.34537]
[1725719280757,2.27900919,2301.4,2301.3,8.69074]
[1725719280983,1.36728685,2301.4,2301.3,8.91684506]
[1725719281184,1.82483455,2301.5,2301.4,4.34518]
[1725719281698,1.82483455,2301.5,2301.4,4.57117723]
[1725719284676,5.27890733,2301.6,2301.4,4.57117723]
[1725719284876,1.8242011,2301.5,2301.4,4.57117723]
[1725719285054,2.27890733,2301.5,2301.4,4.57117723]
[1725719285256,5.27890733,2301.6,2301.4,4.57117723]
[1725719286182,1.82436946,2301.5,2301.4,4.57117723]
[1725719286362,1.82452593,2301.5,2301.4,4.57117723]
[1725719286563,1.82454155,2301.5,2301.4,4.57117723]
[1725719288290,2.27890733,2301.5,2301.4,4.57117723]
[1725719293304,3.0,2301.6,2301.4,4.57117723]
[1725719293617,2.2820143,2301.5,2301.4,4.57117723]
[1725719296965,3.0,2301.6,2301.4,4.57117723]
[1725719297165,3.36762641,2301.5,2301.4,4.57117723]
[1725719303517,3.36762641,2301.5,2301.2,8.69094]
[1725719303718,1.82614863,2301.3,2301.2,8.69094]
[1725719303929,2.28267875,2301.3,2301.2,4.34542]
[1725719304121,3.41315247,2301.5,2301.2,4.34542]
[1725719304122,2.28267875,2301.4,2301.2,4.34542]
[1725719304449,1.82623736,2301.3,2301.2,4.34542]
[1725719304789,4.34588,2301.1,2300.6,4.34668]
[1725719305048,1.36997089,2300.7,2300.6,4.34668]
[1725719305355,1.82658573,2300.7,2300.5,4.34674]
[1725719305536,1.82658573,2300.6,2300.5,4.34674]
[1725719305739,1.82658573,2300.6,2300.3,4.34713]
[1725719305740,3.83044061,2300.6,2300.3,4.34713]
[1725719305938,1.36981994,2300.4,2300.3,4.34713]
[1725719306411,1.36981994,2300.5,2300.3,4.34713]
[1725719306938,1.36981994,2300.4,2300.3,4.34713]
[1725719307341,0.91248894,2300.4,2300.3,4.34713]
[1725719307652,1.415346,2300.5,2300.3,4.34713]
[1725719307872,0.91249905,2300.4,2300.3,4.34713]
[1725719308151,0.91249905,2300.4,2300.3,8.69438]
[1725719308362,1.36981994,2300.5,2300.4,8.69414]
[1725719308363,0.91249905,2300.5,2300.4,8.69414]
[1725719309160,0.91249905,2300.6,2300.5,8.69376]
[1725719312456,0.91249905,2300.6,2300.5,4.34688]
[1725719312626,1.415346,2300.7,2300.5,4.34688]
[1725719312821,0.9121762,2300.6,2300.5,4.34688]
[1725719313024,1.415346,2300.7,2300.6,4.34669]
[1725719313025,1.82642659,2300.7,2300.6,4.34669]
[1725719314145,1.368185,2300.7,2300.6,4.34669]
[1725719316656,1.36776256,2300.8,2300.7,4.3465]
[1725719317199,1.82642659,2300.9,2300.8,4.34631]
[1725719317361,1.36760568,2300.9,2300.8,4.34631]
[1725719317559,1.36760525,2300.9,2300.8,4.34631]
[1725719317759,4.87195265,2301.0,2300.8,4.34631]
[1725719317996,1.36761408,2300.9,2300.8,4.34631]
[1725719319985,1.36761408,2300.9,2300.8,8.69262]
[1725719321080,0.91158498,2300.9,2300.8,9.9027277]
[1725719321496,0.91158498,2301.0,2300.9,8.69224]
[1725719321832,0.91158498,2301.0,2300.9,8.9192216]
[1725719321991,0.91158498,2301.0,2300.9,10.24407285]
[1725719326140,0.91158498,2301.0,2300.9,8.9192216]
[1725719326430,1.36761408,2301.1,2300.9,8.9192216]
[1725719326431,1.36761408,2301.1,2301.0,4.34593]
[1725719326599,1.36761408,2301.1,2301.0,4.57267854]
[1725719327301,1.82642659,2301.1,2301.0,4.57267854]
[1725719329143,4.82642659,2301.2,2301.0,4.57267854]
[1725719329331,1.82642659,2301.1,2301.0,4.57267854]
[1725719334559,1.82642659,2301.1,2301.0,8.91860854]
[1725719335128,3.37363503,2301.1,2301.0,0.22674854]
[1725719335323,6.94977643,2301.1,2301.0,0.22674854]
[1725719335866,7.4026915,2301.1,2301.0,0.22674854]
[1725719336525,6.94764902,2301.1,2301.0,0.22674854]
[1725719336754,7.4026915,2301.1,2301.0,0.22674854]
[1725719337930,5.85548306,2301.1,2301.0,0.22674854]
[1725719338132,5.85548306,2301.1,2301.0,8.91860854]
[1725719338133,1.82433956,2301.1,2301.0,8.91860854]
[1725719338573,1.36835529,2301.1,2301.0,8.91860854]
[1725719339069,1.36835529,2301.1,2301.0,13.26453854]
[1725719339237,1.82433956,2301.2,2301.1,8.69148]
[1725719339238,0.91219695,2301.2,2301.1,8.69148]
[1725719339438,0.91219695,2301.2,2301.1,8.91803026]
[1725719339871,0.91219695,2301.2,2301.1,10.51868629]
[1725719341469,1.82433956,2301.3,2301.2,4.34555]
[1725719341927,3.87300027,2301.5,2301.3,4.34537]
[1725719341928,1.82433956,2301.4,2301.3,4.34537]
[1725719342127,1.82449702,2301.4,2301.3,4.57152375]
[1725719342473,1.82456463,2301.4,2301.3,4.57152375]
[1725719342630,2.28026577,2301.4,2301.3,4.57152375]
[1725719342829,1.82456306,2301.4,2301.3,4.57152375]
[1725719343371,3.2806262,2301.4,2301.3,0.22615375]
[1725719343525,3.2806262,2301.4,2301.0,8.69165]
[1725719343526,6.2806262,2301.4,2301.1,4.34571]
[1725719343728,1.82476452,2301.2,2301.1,4.34571]
[1725719345640,1.3685915,2301.2,2301.1,8.69145]
[1725719346037,1.82476452,2301.3,2301.2,4.34555]
[1725719347554,5.28095565,2301.4,2301.3,4.34537]
[1725719347757,2.28095565,2301.4,2301.3,4.34537]
[1725719351875,2.28095565,2301.4,2301.3,4.57157939]
[1725719352556,3.04552606,2301.5,2301.3,4.57157939]
[1725719352761,2.28150986,2301.4,2301.3,4.57157939]
[1725719353375,2.28179195,2301.4,2301.3,4.57157939]
[1725719353696,2.28180591,2301.4,2301.3,4.57157939]
[1725719353991,3.04552606,2301.5,2301.3,4.57157939]
[1725719354375,5.78333789,2301.5,2301.3,4.57157939]
[1725719354905,3.04552606,2301.5,2301.3,4.57157939]
[1725719355409,5.78333789,2301.5,2301.3,4.57157939]
[1725719355594,3.04552606,2301.5,2301.3,4.57157939]
[1725719355975,5.78333789,2301.5,2301.3,4.57157939]
[1725719356178,2.28199575,2301.4,2301.3,4.57157939]
[1725719356486,3.04552606,2301.5,2301.3,4.57157939]
[1725719356487,5.78333789,2301.5,2301.3,4.57157939]
[1725719356684,6.78292252,2301.5,2301.3,4.57157939]
[1725719357708,4.04511069,2301.5,2301.3,4.57157939]
[1725719357924,6.78373209,2301.5,2301.3,4.57157939]
[1725719359181,2.28235488,2301.4,2301.3,4.57157939]
[1725719359393,6.78373209,2301.5,2301.3,4.57157939]
[1725719360213,4.04511069,2301.5,2301.3,4.57157939]
[1725719360575,6.78373209,2301.5,2301.3,4.57157939]
[1725719360799,4.04511069,2301.5,2301.3,4.57157939]
[1725719361004,6.78373209,2301.5,2301.3,4.57157939]
[1725719361990,6.78373209,2301.5,2301.3,4.34537]
[1725719362425,6.78373209,2301.5,2300.6,4.34667]
[1725719362426,2.5873,2301.3,2300.6,2.5637]
[1725719362647,1.82692848,2300.9,2300.8,4.34625]
[1725719362926,3.8763951,2301.0,2300.8,4.57274832]
[1725719363079,2.2836606,2300.9,2300.8,4.57274832]
[1725719364783,1.82735686,2300.9,2300.8,4.57274832]
[1725719364984,1.82734227,2300.9,2300.8,4.57274832]
[1725719365618,2.2836606,2300.9,2300.8,4.57274832]
[1725719365917,3.83086904,2301.0,2300.8,4.57274832]
[1725719366213,1.8274357,2300.9,2300.8,4.57274832]
[1725719366433,2.2836606,2300.9,2300.8,4.57274832]
[1725719367280,2.2844298,2300.9,2300.8,4.57274832]
[1725719367480,3.83163824,2301.0,2300.8,4.57274832]
[1725719367707,1.82747368,2300.9,2300.8,4.57274832]
[1725719367885,2.2844298,2300.9,2300.8,4.57274832]
[1725719369627,1.82740026,2300.9,2300.8,4.57274832]
[1725719369912,2.2844298,2300.9,2300.8,4.57274832]
[1725719372404,2.28412611,2300.9,2300.8,4.57274832]
[1725719374703,3.83133455,2301.0,2300.8,4.57274832]
[1725719375104,2.28412611,2300.9,2300.8,4.57274832]
[1725719375734,3.83133455,2301.0,2300.8,4.57274832]
[1725719375931,2.28412611,2300.9,2300.8,4.57274832]
[1725719377135,2.28412611,2300.9,2300.8,0.22649832]
[1725719377434,2.28412611,2300.9,2300.7,8.69282]
[1725719377592,1.37025017,2300.8,2300.7,4.3464]
[1725719377795,1.370218,2300.8,2300.7,4.3464]
[1725719378098,1.82700023,2300.8,2300.7,4.3464]
[1725719378296,1.82700023,2300.9,2300.7,4.3464]
[1725719378512,1.37020994,2300.8,2300.7,4.3464]
[1725719378711,1.82700023,2300.8,2300.7,4.3464]
[1725719379396,1.37016581,2300.8,2300.7,4.3464]
[1725719379795,1.82700023,2300.8,2300.7,4.3465]
[1725719381939,1.82700023,2300.8,2300.7,4.5733983]
[1725719395513,13.37794483,2300.8,2300.7,0.2268983]
[1725719395738,10.57884327,2300.8,2300.7,0.2268983]
[1725719395944,12.18498653,2300.8,2300.4,4.34697]
[1725719396146,3.83130638,2300.5,2300.4,4.34697]
[1725719396722,1.54720844,2300.5,2300.4,4.34697]
[1725719396922,3.37418827,2300.5,2300.4,4.56691218]
[1725719397124,3.37417197,2300.5,2300.4,4.56691218]
[1725719397334,3.37399812,2300.5,2300.4,4.56691218]
[1725719397616,3.83130638,2300.5,2300.4,4.56691218]
[1725719398923,3.37387567,2300.5,2300.4,4.56691218]
[1725719399656,4.44718241,2300.5,2300.4,0.21994218]
[1725719400016,4.44718241,2300.5,2300.2,4.34733]
[1725719400235,1.36995069,2300.3,2300.2,4.34733]
[1725719400436,1.3700163,2300.3,2300.2,4.34733]
[1725719401759,1.3700163,2300.3,2300.2,9.841299]
[1725719401946,1.3700163,2300.4,2300.3,8.6945]
[1725719402151,1.79e-06,2300.4,2300.3,13.01220844]
[1725719402374,1.82660603,2301.0,2300.9,4.34612]
[1725719402533,8.09e-06,2301.1,2301.0,4.34593]
[1725719402534,5.1e-06,2301.1,2301.0,4.34593]
[1725719402734,1.82660093,2301.4,2301.3,8.69074]
[1725719403037,2.28326813,2301.5,2301.3,8.69074]
[1725719403038,2.28326813,2301.5,2301.3,4.34537]
[1725719403246,2.28326813,2301.5,2301.4,4.34518]
[1725719403578,2.28326813,2301.5,2301.1,8.69125]
[1725719403778,1.82559353,2301.2,2301.0,4.34593]
[1725719403942,1.82579265,2301.1,2300.9,4.34602]
[1725719404140,1.82579265,2301.0,2300.9,4.34602]
[1725719404470,1.82579265,2301.0,2300.9,8.69214]
[1725719404675,1.82579265,2301.1,2300.9,8.69214]
[1725719404982,1.82579265,2301.0,2300.9,4.34602]
[1725719405572,1.82579265,2301.1,2300.9,4.34602]
[1725719405778,1.82579265,2301.0,2300.9,4.34602]
[1725719407066,1.82579265,2301.0,2300.9,6.34602]
[1725719408038,1.82579265,2301.1,2301.0,4.34593]
[1725719408374,2.32751797,2301.2,2301.0,4.34593]
[1725719408675,1.82641057,2301.1,2301.0,4.34593]
[1725719409175,1.82639459,2301.1,2301.0,4.34593]
[1725719409838,2.32844103,2301.2,2301.0,4.34593]
[1725719410184,1.82639638,2301.1,2301.0,4.34593]
[1725719410359,1.8263654,2301.1,2301.0,4.34593]
[1725719410562,2.32844103,2301.2,2301.0,4.34593]
[1725719410766,2.28291497,2301.1,2301.0,4.34593]
[1725719410968,1.82636767,2301.1,2301.0,4.34593]
[1725719412882,1.82636767,2301.1,2301.0,8.69186]
[1725719415572,1.36954322,2301.1,2301.0,8.91094024]
[1725719415878,1.82636767,2301.2,2301.1,4.34574]
[1725719416272,1.82636767,2301.2,2301.1,4.56468469]
[1725719416468,2.28268575,2301.2,2301.1,4.56468469]
[1725719416674,1.82591536,2301.2,2301.1,4.56468469]
[1725719417988,3.87542025,2301.3,2301.2,4.34555]
[1725719418317,4.5927345,2301.3,2301.2,4.56438684]
[1725719418608,6.87501836,2301.3,2301.2,4.56438684]
[1725719419406,1.82561979,2301.3,2301.2,9.80094952]
[1725719419620,0.9127032,2301.3,2301.2,5.45539952]
[1725719419925,0.9127032,2301.3,2301.2,0.21883684]
[1725719419926,10.17412302,2301.3,2301.2,0.21883684]
[1725719420072,19.66383129,2301.3,2301.2,0.21883684]
[1725719420396,12.78886844,2301.0,2300.9,2.0]
[1725719420571,20.37114234,2301.0,2300.9,2.0]
[1725719420774,20.92114234,2301.0,2300.9,2.0]
[1725719420977,20.92114234,2301.0,2299.9,4.34793]
[1725719420978,2.5498,2300.7,2299.9,4.34793]
[1725719421203,2.9168466,2300.1,2300.0,4.3478]
[1725719421404,2.9168466,2300.1,2300.0,0.20553719]
[1725719421405,3.41891871,2300.1,2300.0,0.20553719]
[1725719421584,3.87546477,2300.1,2300.0,0.20553719]
[1725719422012,1.87128521,2300.1,2300.0,0.20553719]
[1725719422324,1.87127896,2300.1,2300.0,4.34782]
[1725719422621,1.41420799,2300.1,2300.0,4.34782]
[1725719422844,0.9124075,2300.1,2300.0,9.77076397]
[1725719423428,0.9124075,2300.2,2300.1,4.34763]
[1725719423815,0.9124075,2300.2,2300.1,8.90070302]
[1725719424343,0.9124075,2300.2,2300.1,9.07470302]
[1725719424723,0.9124075,2300.3,2300.2,8.69488]
[1725719425216,0.9124075,2300.3,2300.2,8.90021508]
[1725719425916,0.9124075,2300.4,2300.3,8.6945]
[1725719426328,1.41420799,2300.5,2300.4,4.34707]
[1725719426635,0.04552606,2300.5,2300.4,0.20511923]
[1725719426848,1.41323991,2300.5,2300.4,4.55218923]
[1725719427006,1.36771385,2300.5,2300.4,4.55218923]
[1725719428143,1.36771385,2300.5,2300.4,8.89925923]
[1725719428436,1.36748136,2300.6,2300.5,4.34688]
[1725719428603,1.36748136,2300.6,2300.5,8.69376]
[1725719428807,0.91155805,2300.6,2300.5,9.78865924]
[1725719429205,0.91155805,2300.7,2300.6,8.69338]
[1725719429443,0.91155805,2300.7,2300.6,8.89828341]
[1725719430309,1.36748136,2300.8,2300.7,4.3465]
[1725719430310,0.91155805,2300.8,2300.7,4.3465]
[1725719430514,1.36748136,2300.9,2300.8,8.69262]
[1725719430949,1.36748136,2300.9,2300.8,8.89801759]
[1725719431155,1.36748136,2300.9,2300.8,13.24432759]
[1725719431319,1.36748136,2301.0,2300.9,8.69224]
[1725719431718,1.36748136,2301.0,2300.9,8.89752972]
[1725719431956,1.8257529,2301.1,2301.0,8.69186]
[1725719432126,1.8257529,2301.2,2301.0,8.69186]
[1725719432336,2.27888641,2301.2,2301.1,4.34574]
[1725719432563,2.32441247,2301.3,2301.2,4.34555]
[1725719433063,2.32441247,2301.3,2301.2,4.55051615]
[1725719433438,3.77524572,2301.3,2301.2,0.20496615]
[1725719433739,8.21461567,2301.3,2301.2,0.20496615]
[1725719433944,15.66092909,2301.3,2301.2,0.20496615]
[1725719434140,11.31555909,2301.3,2300.9,4.34612]
[1725719434354,1.36714931,2301.0,2300.9,4.34612]
[1725719434568,1.36718767,2301.0,2300.9,4.34612]
[1725719434850,1.82286575,2301.0,2300.9,4.34612]